bitfinex/quotes_SOLUSD_20250821
["timestamp","ask_amount","ask_price","bid_price","bid_amount"]
[1755775807566,0.06,184.98,184.97,130.44628718]
[1755775807860,0.06,184.99,184.98,126.56222401]
[1755775808072,0.06,184.99,184.98,171.21628718]
[1755775808271,0.06,184.99,184.98,171.92628718]
[1755775809057,0.06,184.99,184.98,168.81222401]
[1755775810865,0.06,184.99,184.98,170.97901301]
[1755775814660,0.06,185.0,184.99,79.68]
[1755775814867,0.06,185.0,184.99,104.86685694]
[1755775815786,0.06,185.0,184.99,126.53255454]
[1755775816097,0.06,185.0,184.99,252.88628718]
[1755775816283,0.06,185.0,184.99,294.42628718]
[1755775816596,0.06,185.0,184.99,296.59272418]
[1755775816889,0.06,185.0,184.99,279.62272418]
[1755775817270,0.06,185.0,184.99,276.50866101]
[1755775817495,0.76,185.0,184.99,115.073067]
[1755775817799,0.76,185.0,184.99,130.613067]
[1755775817958,0.76,185.0,184.99,156.613067]
[1755775818168,0.06,185.0,184.99,156.613067]
[1755775819188,2.05406317,185.03,184.99,156.613067]
[1755775819563,2.05406317,185.03,184.99,154.44663]
[1755775819760,2.05406317,185.03,184.99,155.16663]
[1755775819961,2.05406317,185.03,185.02,7.22663]
[1755775820195,2.05406317,185.03,185.02,48.74663]
[1755775821493,2.75406317,185.03,185.02,48.74663]
[1755775821663,0.06,185.04,185.02,48.74663]
[1755775821664,3.17406317,185.04,185.02,48.74663]
[1755775821871,3.87406317,185.04,185.02,48.74663]
[1755775822074,0.76,185.04,185.02,48.74663]
[1755775822389,0.06,185.04,185.03,7.22663]
[1755775822568,0.06,185.04,185.03,7.94663]
[1755775822971,3.81406317,185.08,185.07,7.22663]
[1755775823281,3.81406317,185.08,185.07,128.36663]
[1755775824170,0.06,185.08,185.07,128.36663]
[1755775824374,3.17066009,185.08,185.07,128.36663]
[1755775824566,0.06,185.08,185.07,128.36663]
[1755775830700,4.9203621,185.08,185.07,128.36663]
[1755775832606,0.06,185.08,185.07,163.80258611]
[1755775832777,0.06,185.08,185.07,117.42222401]
[1755775832985,0.06,185.08,185.07,134.006992]
[1755775837595,0.06,185.08,185.07,137.84448136]
[1755775837793,0.06,185.08,185.07,151.44007537]
[1755775837990,0.06,185.08,185.07,147.60258601]
[1755775840496,0.06,185.08,185.07,163.86258601]
[1755775842938,0.06,185.08,185.07,167.70007537]
[1755775843138,0.06,185.08,185.07,163.86258601]
[1755775843316,0.06,185.08,185.07,167.70007537]
[1755775843517,0.06,185.12,185.07,167.70007537]
[1755775843518,0.06,185.12,185.11,86.78663]
[1755775843709,0.06,185.12,185.11,128.28663]
[1755775844223,0.06,185.12,185.11,132.224119]
[1755775844635,0.06,185.12,185.11,132.944119]
[1755775846547,0.06,185.12,185.11,165.25495438]
[1755775847106,0.06,185.12,185.11,148.99495438]
[1755775848420,0.06,185.12,185.11,154.39714767]
[1755775849043,0.06,185.12,185.11,170.65714767]
[1755775850349,0.06,185.12,185.11,168.2019063]
[1755775850547,0.06,185.12,185.11,170.65714767]
[1755775852343,0.1,185.17,185.16,86.50663]
[1755775852548,0.1,185.17,185.16,128.00663]
[1755775852929,0.1,185.17,185.16,131.191872]
[1755775853628,0.1,185.17,185.16,131.861872]
[1755775854316,0.1,185.17,185.16,131.191872]
[1755775855064,0.1,185.17,185.16,89.691872]
[1755775855221,0.77,185.17,185.16,131.191872]
[1755775856749,0.1,185.17,185.16,131.191872]
[1755775858638,0.1,185.17,185.16,131.861872]
[1755775860235,0.1,185.17,185.16,131.191872]
[1755775860458,0.77,185.17,185.16,131.171872]
[1755775861155,0.1,185.17,185.16,131.171872]
[1755775861856,0.1,185.17,185.16,134.29711337]
[1755775862929,0.1,185.17,185.16,131.841872]
[1755775865245,0.1,185.17,185.16,134.29711337]
[1755775865751,0.1,185.17,185.16,131.841872]
[1755775865954,0.1,185.17,185.16,134.32711337]
[1755775866843,0.1,185.17,185.16,133.65711337]
[1755775867044,0.1,185.18,185.17,105.18]
[1755775867238,0.1,185.18,185.17,112.40663]
[1755775867646,0.1,185.18,185.17,114.571425]
[1755775870460,3.22524137,185.18,185.17,156.051425]
[1755775870847,0.77,185.18,185.17,156.051425]
[1755775875060,0.77,185.18,185.17,153.88663]
[1755775877560,0.77,185.18,185.17,112.40663]
[1755775877768,0.1,185.18,185.17,153.88663]
[1755775878064,0.1,185.18,185.17,156.401872]
[1755775878448,0.79,185.18,185.17,156.401872]
[1755775878962,0.79,185.18,185.17,153.88663]
[1755775880049,0.1,185.18,185.17,153.88663]
[1755775880256,0.79,185.18,185.17,153.88663]
[1755775880860,0.1,185.18,185.17,153.88663]
[1755775881572,0.1,185.18,185.17,156.051659]
[1755775882250,0.1,185.18,185.17,156.081659]
[1755775886455,0.1,185.18,185.17,114.601659]
[1755775886658,0.1,185.18,185.17,156.081659]
[1755775890456,0.1,185.18,185.17,156.761659]
[1755775894866,0.1,185.18,185.17,156.081659]
[1755775895375,0.1,185.18,185.17,156.761659]
[1755775897323,0.1,185.18,185.17,159.21690037]
[1755775897666,0.1,185.18,185.17,156.761659]
[1755775900800,0.1,185.18,185.17,159.21690037]
[1755775902970,0.1,185.18,185.17,159.19690037]
[1755775903172,0.1,185.18,185.17,158.51690037]
[1755775903500,2.51524137,185.22,185.2,7.22663]
[1755775903501,0.06,185.22,185.2,7.22663]
[1755775903714,0.75,185.22,185.21,49.20663]
[1755775904008,0.06,185.22,185.21,49.20663]
[1755775904468,0.06,185.22,185.21,67.89607737]
[1755775904829,0.06,185.22,185.21,65.440836]
[1755775905303,0.06,185.22,185.21,66.120836]
[1755775905501,0.06,185.22,185.21,67.89607737]
[1755775909104,0.06,185.22,185.21,65.440836]
[1755775909291,0.06,185.22,185.21,67.89607737]
[1755775909697,0.06,185.22,185.21,103.260836]
[1755775909896,3.17524137,185.22,185.21,87.02663]
[1755775910111,0.72,185.22,185.21,129.04663]
[1755775910708,0.06,185.22,185.21,129.04663]
[1755775911287,0.72,185.22,185.21,129.04663]
[1755775914731,0.06,185.22,185.21,129.04663]
[1755775917425,0.06,185.22,185.21,129.73663]
[1755775920417,0.06,185.22,185.21,129.04663]
[1755775920418,0.72,185.22,185.21,129.04663]
[1755775924427,0.06,185.22,185.21,129.04663]
[1755775924812,0.72,185.22,185.21,129.04663]
[1755775925218,3.17524137,185.22,185.21,79.8]
[1755775925530,0.72,185.22,185.21,121.74]
[1755775925713,3.17524137,185.22,185.21,121.72]
[1755775926311,3.17524137,185.22,185.21,41.92]
[1755775926516,0.72,185.22,185.21,49.14663]
[1755775927312,0.72,185.22,185.21,41.92]
[1755775927509,3.17524137,185.22,185.21,49.14663]
[1755775928226,3.17524137,185.22,185.21,41.92]
[1755775930040,0.72,185.22,185.21,41.92]
[1755775930229,3.17524137,185.22,185.21,41.92]
[1755775930935,0.72,185.22,185.21,49.10663]
[1755775934135,0.72,185.22,185.21,41.88]
[1755775934307,0.72,185.22,185.21,49.10663]
[1755775934644,0.06,185.22,185.21,49.10663]
[1755775937516,0.06,185.22,185.21,49.76663]
[1755775938010,0.06,185.22,185.21,129.56663]
[1755775942748,0.06,185.22,185.21,128.90663]
[1755775944335,0.74,185.22,185.21,121.68]
[1755775944523,0.74,185.22,185.21,121.58]
[1755775944833,3.19524137,185.22,185.21,79.8]
[1755775945229,3.19524137,185.22,185.21,87.02663]
[1755775947143,3.19524137,185.22,185.21,79.8]
[1755775947440,3.19524137,185.22,185.21,87.02663]
[1755775948511,0.06,185.22,185.21,87.02663]
[1755775948910,0.74,185.22,185.21,87.02663]
[1755775949111,3.19524137,185.22,185.21,87.02663]
[1755775949943,3.19524137,185.22,185.21,7.22663]
[1755775950418,3.19524137,185.22,185.21,7.25663]
[1755775950615,3.19524137,185.22,185.21,0.03]
[1755775950837,3.19524137,185.22,185.2,4.45663]
[1755775951146,3.13524137,185.21,185.2,4.45663]
[1755775951950,2.87770792,185.22,185.2,4.45663]
[1755775952247,3.13524137,185.21,185.2,4.45663]
[1755775952627,3.13524137,185.21,185.19,41.79]
[1755775952628,0.68,185.21,185.19,41.79]
[1755775952964,3.13524137,185.21,185.2,4.45663]
[1755775953125,2.87770792,185.22,185.2,4.45663]
[1755775953441,6.01294929,185.22,185.2,4.45663]
[1755775953609,2.87770792,185.22,185.2,4.45663]
[1755775954030,2.87770792,185.22,185.21,5.11663]
[1755775957418,5.33294929,185.22,185.2,46.35663]
[1755775957723,6.01294929,185.22,185.19,122.39]
[1755775957933,6.01294929,185.22,185.21,4.45663]
[1755775958244,6.01294929,185.22,185.19,122.39]
[1755775958245,6.01294929,185.22,185.19,126.84663]
[1755775958415,6.01294929,185.22,185.19,122.39]
[1755775958925,6.01294929,185.22,185.21,4.45663]
[1755775959645,3.55770792,185.22,185.19,126.84663]
[1755775959830,6.01294929,185.22,185.21,4.45663]
[1755775960031,5.33294929,185.22,185.21,4.45663]
[1755775961447,5.33294929,185.22,185.19,126.84663]
[1755775961628,5.33294929,185.22,185.21,4.45663]
[1755775962342,2.87770792,185.22,185.21,4.45663]
[1755775962648,5.33294929,185.22,185.21,4.45663]
[1755775962822,2.87770792,185.22,185.21,5.11663]
[1755775965849,2.87770792,185.22,185.21,4.45663]
[1755775966022,2.87770792,185.22,185.21,5.11663]
[1755775967243,2.87770792,185.22,185.21,4.45663]
[1755775967429,2.87770792,185.22,185.21,5.16663]
[1755775968353,2.87770792,185.22,185.21,4.45663]
[1755775968555,2.87770792,185.22,185.21,46.29663]
[1755775969052,2.87770792,185.22,185.21,41.84]
[1755775969632,2.87770792,185.22,185.21,4.45663]
[1755775971731,2.87770792,185.22,185.21,5.16663]
[1755775974256,2.87770792,185.22,185.2,126.83663]
[1755775974436,2.87770792,185.22,185.21,4.45663]
[1755775975952,2.87770792,185.22,185.21,5.16663]
[1755775980153,3.58770792,185.22,185.2,121.67]
[1755775980454,3.16524137,185.21,185.2,84.28663]
[1755775980849,5.33294929,185.22,185.2,84.28663]
[1755775981155,9.68896619,185.22,185.2,84.28663]
[1755775981357,6.04294929,185.22,185.2,84.28663]
[1755775981554,9.68896619,185.22,185.2,84.28663]
[1755775981743,6.04294929,185.22,185.2,84.28663]
[1755775982058,9.68896619,185.22,185.2,84.28663]
[1755775982366,6.04294929,185.22,185.2,84.28663]
[1755775982550,9.68896619,185.22,185.2,4.48663]
[1755775982732,6.04294929,185.22,185.2,4.48663]
[1755775982932,7.23372482,185.22,185.2,4.48663]
[1755775983150,2.45524137,185.21,185.2,0.03]
[1755775983352,2.45524137,185.21,185.2,4.48663]
[1755775984071,7.23372482,185.22,185.2,4.48663]
[1755775984072,3.58770792,185.22,185.2,4.48663]
[1755775984234,2.45524137,185.21,185.2,4.48663]
[1755775984658,2.87770792,185.22,185.21,4.45663]
[1755775984870,2.87770792,185.22,185.21,5.16663]
[1755775987169,2.87770792,185.22,185.21,46.92663]
[1755775988568,2.87770792,185.22,185.21,126.72663]
[1755775990443,2.87770792,185.22,185.21,46.92663]
[1755775994484,2.87770792,185.22,185.21,126.72663]
[1755775995154,2.87770792,185.22,185.21,129.18187137]
[1755775995658,2.87770792,185.22,185.21,126.72663]
[1755775995854,3.58770792,185.22,185.21,84.25663]
[1755775996055,3.58770792,185.22,185.21,121.54]
[1755775996472,9.68896619,185.22,185.2,0.03]
[1755775996778,3.10524137,185.21,185.2,0.03]
[1755775998058,0.65,185.21,185.2,0.03]
[1755775998384,3.10524137,185.21,185.2,0.03]
[1755776000281,0.65,185.21,185.2,0.03]
[1755776000491,3.10524137,185.21,185.2,0.03]
[1755776001472,0.65,185.21,185.2,0.03]
[1755776008776,3.46787935,185.21,185.2,0.03]
[1755776011670,3.46787935,185.21,185.17,0.03]
[1755776011671,2.71,185.18,185.17,0.03]
[1755776011882,5.16524137,185.18,185.17,0.03]
[1755776012076,5.81524137,185.18,185.17,0.03]
[1755776013202,9.86524766,185.18,185.17,0.03]
[1755776013402,13.51126456,185.18,185.17,0.03]
[1755776013695,27.10685857,185.18,185.17,0.03]
[1755776017598,24.39685857,185.18,185.17,0.03]
[1755776017784,50.39685857,185.18,185.17,0.03]
[1755776018201,92.05685857,185.18,185.17,0.03]
[1755776018409,50.39685857,185.18,185.17,0.03]
[1755776018715,76.99226095,185.18,185.16,0.03]
[1755776018893,2.68,185.11,185.09,4.45663]
[1755776019213,2.68,185.11,185.1,0.72]
[1755776019577,2.68,185.11,185.09,4.45663]
[1755776019822,2.68,185.11,185.08,0.72]
[1755776019993,2.68,185.11,185.09,0.72]
[1755776022309,2.68,185.11,185.07,0.72]
[1755776022310,3.33,185.11,185.07,0.72]
[1755776022499,2.45524137,185.09,185.06,0.72]
[1755776023089,2.45524137,185.08,185.06,0.72]
[1755776023294,2.45524137,185.07,185.04,0.75]
[1755776023697,3.10524137,185.07,185.04,0.75]
[1755776024008,2.45524137,185.06,185.04,0.75]
[1755776024801,2.45524137,185.07,185.06,4.45663]
[1755776024983,0.65,185.09,185.06,1.77663]
[1755776025178,2.45524137,185.07,185.06,1.77663]
[1755776026402,2.45524137,185.07,185.06,2.49663]
[1755776026603,5.27535587,185.08,185.06,2.49663]
[1755776026782,5.27535587,185.08,185.06,0.72]
[1755776027104,5.27535587,185.08,185.06,2.49663]
[1755776027303,2.45524137,185.07,185.06,1.77663]
[1755776028502,2.45524137,185.07,185.05,0.03]
[1755776028711,2.45524137,185.07,185.06,1.77663]
[1755776029709,3.12524137,185.07,185.05,0.03]
[1755776030010,2.45524137,185.06,185.05,0.03]
[1755776030189,3.12524137,185.06,185.05,0.03]
[1755776031082,3.12524137,185.06,185.05,1.80663]
[1755776031782,3.12524137,185.06,185.05,0.03]
[1755776031977,3.12524137,185.06,185.05,1.80663]
[1755776032431,2.45524137,185.06,185.05,1.80663]
[1755776033909,2.45524137,185.06,185.05,0.03]
[1755776034209,2.45524137,185.06,185.05,1.80663]
[1755776034880,2.45524137,185.06,185.05,0.03]
[1755776035077,2.45524137,185.06,185.05,1.80663]
[1755776035281,2.45524137,185.06,185.05,0.03]
[1755776035481,2.45524137,185.06,185.05,1.80663]
[1755776036207,2.45524137,185.06,185.05,2.52663]
[1755776036407,2.45524137,185.06,185.05,1.80663]
[1755776036999,2.45524137,185.06,185.05,0.03]
[1755776037200,2.45524137,185.06,185.05,1.80663]
[1755776037797,2.45524137,185.06,185.05,0.03]
[1755776037990,2.45524137,185.06,185.05,1.80663]
[1755776038700,2.45524137,185.06,185.05,0.03]
[1755776038902,2.45524137,185.06,185.05,1.80663]
[1755776039103,3.12524137,185.06,185.05,0.03]
[1755776040320,29.12524137,185.06,185.05,0.03]
[1755776040497,42.72083538,185.06,185.05,0.03]
[1755776041299,84.34083538,185.06,185.05,0.03]
[1755776044127,94.16180086,185.06,185.05,0.03]
[1755776044636,94.16180086,185.06,185.04,0.03]
[1755776044637,13.59559401,185.05,185.04,0.03]
[1755776044815,26.54180086,185.05,185.04,0.03]
[1755776045016,26.0,185.03,185.02,0.03]
[1755776045325,83.67083538,185.03,185.02,0.03]
[1755776045523,84.34083538,185.03,185.02,0.03]
[1755776045827,87.16228824,185.03,185.02,0.03]
[1755776049704,45.54228824,185.03,185.02,0.03]
[1755776049929,2.82145286,185.03,185.02,0.75]
[1755776050223,18.87228824,185.03,185.02,0.03]
[1755776050527,19.54228824,185.03,185.02,0.03]
[1755776050736,61.16228824,185.03,185.02,0.03]
[1755776054730,60.49228824,185.03,185.02,0.03]
[1755776056508,61.14228824,185.03,185.02,0.03]
[1755776056708,19.52228824,185.03,185.02,0.03]
[1755776056904,61.14228824,185.03,185.02,0.03]
[1755776057324,64.76709553,185.03,185.02,0.03]
[1755776057930,39.59559401,185.0,184.98,0.032441]
[1755776058146,57.67083538,184.99,184.98,0.032441]
[1755776058427,58.32083538,184.99,184.98,0.032441]
[1755776060329,59.7110515,184.99,184.98,0.032441]
[1755776060715,59.0610515,184.99,184.98,0.032441]
[1755776062113,59.7110515,184.99,184.98,0.032441]
[1755776062317,59.0610515,184.99,184.98,0.032441]
[1755776062627,59.7110515,184.99,184.98,0.032441]
[1755776063007,63.33872788,184.99,184.98,0.032441]
[1755776064321,62.68872788,184.99,184.98,0.032441]
[1755776064966,63.33872788,184.99,184.89,81.797621]
[1755776065109,13.59559401,184.98,184.89,2.16855]
[1755776065447,3.84545749,184.93,184.87,26.0]
[1755776065612,3.84545749,184.93,184.88,99.90958649]
[1755776066257,2.82200788,184.92,184.88,96.064129]
[1755776066406,2.82200788,184.92,184.88,99.90958649]
[1755776067029,2.82200788,184.92,184.89,0.67]
[1755776071230,2.82200788,184.92,184.89,96.73413]
[1755776071443,2.82200788,184.92,184.89,79.8]
[1755776071651,2.82200788,184.92,184.9,0.67]
[1755776074647,6.66746537,184.92,184.9,0.67]
[1755776074817,6.66746537,184.92,184.89,79.8]
[1755776075150,3.84545749,184.91,184.89,83.645458]
[1755776075442,3.84545749,184.91,184.89,84.315458]
[1755776075826,4.49545749,184.9,184.88,0.03]
[1755776076025,3.84545749,184.89,184.88,0.03]
[1755776076442,3.84545749,184.9,184.88,0.03]
[1755776076626,3.84545749,184.9,184.88,0.7]
[1755776077041,3.84545749,184.9,184.88,0.03]
[1755776077557,3.84545749,184.9,184.88,0.7]
[1755776077770,3.84545749,184.9,184.88,0.03]
[1755776078770,28.82200788,184.92,184.88,0.03]
[1755776078771,4.49545749,184.89,184.88,0.03]
[1755776079738,3.84545749,184.89,184.88,0.03]
[1755776079954,3.84545749,184.91,184.88,0.7]
[1755776080160,3.84545749,184.9,184.88,0.7]
[1755776080648,3.84545749,184.91,184.88,0.7]
[1755776080850,3.84545749,184.91,184.89,0.67]
[1755776081162,3.84545749,184.91,184.88,0.03]
[1755776081467,3.84545749,184.91,184.88,0.7]
[1755776081656,3.84545749,184.91,184.88,0.03]
[1755776081862,0.65,184.9,184.88,0.03]
[1755776082168,4.49545749,184.9,184.88,0.03]
[1755776082667,0.65,184.89,184.88,0.03]
[1755776082840,4.49545749,184.89,184.88,0.03]
[1755776083271,0.65,184.89,184.88,0.03]
[1755776083440,4.49545749,184.89,184.88,0.03]
[1755776085067,3.84545749,184.89,184.88,0.03]
[1755776085458,4.49545749,184.89,184.88,0.03]
[1755776086450,20.9140622,184.89,184.88,0.03]
[1755776086784,24.54918369,184.89,184.88,0.03]
[1755776088784,50.54918369,184.89,184.88,0.03]
[1755776089582,13.59559401,184.87,184.86,0.2]
[1755776089772,66.56163048,184.87,184.86,0.2]
[1755776089971,67.21163048,184.87,184.86,0.2]
[1755776091594,25.57163048,184.87,184.86,0.2]
[1755776091768,67.21163048,184.87,184.86,0.2]
[1755776094104,25.57163048,184.87,184.86,0.2]
[1755776094410,69.38171048,184.87,184.86,0.2]
[1755776094702,13.59559401,184.86,184.85,0.03]
[1755776094877,25.57163048,184.86,184.85,0.03]
[1755776095377,67.21163048,184.86,184.85,0.03]
[1755776097980,25.57163048,184.86,184.85,0.03]
[1755776098277,67.21163048,184.86,184.85,0.03]
[1755776098476,25.57163048,184.86,184.85,0.03]
[1755776098800,67.21163048,184.86,184.85,0.03]
[1755776099195,67.23163048,184.86,184.85,0.03]
[1755776101687,67.23163048,184.86,184.84,0.03]
[1755776101996,13.59559401,184.84,184.83,0.03]
[1755776102202,62.73617299,184.84,184.83,0.03]
[1755776102611,63.38617299,184.84,184.83,0.03]
[1755776103004,62.73617299,184.84,184.83,0.03]
[1755776103211,63.38617299,184.84,184.83,0.03]
[1755776103926,21.07617299,184.84,184.83,0.03]
[1755776104089,3.84545749,184.85,184.83,0.75]
[1755776104506,3.84545749,184.84,184.83,0.75]
[1755776104701,3.84545749,184.84,184.83,0.03]
[1755776105321,18.0910515,184.84,184.83,0.03]
[1755776105529,39.59559401,184.82,184.81,0.03]
[1755776105724,13.59559401,184.81,184.79,0.2]
[1755776105885,71.50545749,184.8,184.79,0.2]
[1755776106796,74.98018502,184.8,184.79,0.2]
[1755776107491,93.42605888,184.8,184.79,0.2]
[1755776107707,97.05011276,184.8,184.79,0.2]
[1755776107906,100.89557025,184.8,184.79,0.2]
[1755776109924,39.59559401,184.76,184.74,0.72]
[1755776110121,3.84545749,184.75,184.72,0.72]
[1755776110306,81.25559401,184.76,184.72,0.72]
[1755776110307,3.84545749,184.73,184.72,0.72]
[1755776110510,3.84545749,184.73,184.69,0.1]
[1755776110715,3.84545749,184.72,184.69,0.1]
[1755776111132,3.84545749,184.72,184.7,0.72]
[1755776112003,3.84545749,184.73,184.7,0.72]
[1755776112400,3.84545749,184.71,184.7,0.72]
[1755776114024,81.25559401,184.76,184.7,0.72]
[1755776114233,3.84545749,184.71,184.7,0.72]
[1755776115130,3.84545749,184.71,184.69,0.1]
[1755776115432,3.84545749,184.7,184.69,0.1]
[1755776116705,18.1410515,184.7,184.69,0.1]
[1755776117120,55.25559401,184.7,184.69,0.1]
[1755776117408,59.1010515,184.7,184.69,0.1]
[1755776117602,59.8010515,184.7,184.69,0.1]
[1755776118312,63.64650899,184.7,184.69,0.1]
[1755776119002,59.8010515,184.7,184.69,0.1]
[1755776120032,59.1010515,184.7,184.69,0.1]
[1755776120410,3.84545749,184.77,184.69,0.1]
[1755776120732,3.84545749,184.7,184.69,0.79]
[1755776121114,13.59559401,184.76,184.69,0.79]
[1755776121416,3.84545749,184.7,184.69,0.79]
[1755776121602,3.84545749,184.7,184.69,0.1]
[1755776122220,4.54545749,184.7,184.69,0.1]
[1755776122532,3.84545749,184.7,184.69,0.1]
[1755776123330,41.66,184.71,184.69,0.1]
[1755776123536,3.84545749,184.7,184.69,0.1]
[1755776124933,3.84545749,184.7,184.69,0.79]
[1755776125831,3.84545749,184.7,184.69,0.1]
[1755776127053,7.37123796,184.7,184.69,0.1]
[1755776127643,6.67123796,184.7,184.69,0.1]
[1755776129252,6.67123796,184.7,184.69,0.79]
[1755776129554,6.67123796,184.7,184.69,0.1]
[1755776130953,2.82578047,184.7,184.69,0.79]
[1755776132231,2.82578047,184.7,184.69,4.63545749]
[1755776132442,3.84545749,184.75,184.69,4.63545749]
[1755776132644,2.8245856,184.72,184.71,3.84545749]
[1755776132846,2.8245856,184.72,184.69,0.79]
[1755776133039,3.84545749,184.7,184.69,0.1]
[1755776134132,4.54545749,184.7,184.69,0.1]
[1755776135838,18.1410515,184.7,184.69,0.1]
[1755776136041,51.6174923,184.7,184.69,0.1]
[1755776136249,93.2974923,184.7,184.69,0.1]
[1755776137373,21.28650899,184.68,184.67,0.03]
[1755776137546,50.9174923,184.68,184.67,0.03]
[1755776137953,51.6174923,184.68,184.67,0.03]
[1755776140548,25.6174923,184.68,184.67,0.03]
[1755776140755,25.6174923,184.68,184.58,121.48]
[1755776140756,13.59559401,184.63,184.57,0.69]
[1755776140955,3.84545749,184.59,184.57,0.69]
[1755776141387,3.84545749,184.59,184.58,0.69]
[1755776141782,3.84545749,184.59,184.56,0.69]
[1755776141986,3.84545749,184.58,184.57,0.69]
[1755776143360,3.84545749,184.58,184.55,0.69]
[1755776143568,3.84545749,184.57,184.56,0.69]
[1755776145082,3.84545749,184.59,184.56,0.69]
[1755776145966,55.27559401,184.63,184.56,0.69]
[1755776146359,3.84545749,184.59,184.56,0.69]
[1755776147461,3.84545749,184.59,184.57,0.72]
[1755776147660,3.84545749,184.58,184.57,0.72]
[1755776147879,3.84545749,184.58,184.55,0.72]
[1755776148480,3.84545749,184.56,184.52,0.72]
[1755776148660,3.84545749,184.56,184.53,0.72]
[1755776148994,3.84545749,184.56,184.54,0.72]
[1755776149564,0.69,184.59,184.54,0.72]
[1755776149863,3.84545749,184.57,184.54,0.72]
[1755776153662,2.82740489,184.56,184.52,0.75]
[1755776153858,6.67286238,184.56,184.53,0.72]
[1755776154453,2.82740489,184.56,184.54,0.75]
[1755776154658,2.82740489,184.56,184.54,4.59545749]
[1755776154884,2.82740489,184.56,184.55,0.72]
[1755776156061,2.82740489,184.56,184.54,0.03]
[1755776156470,2.82740489,184.56,184.55,0.72]
[1755776157273,2.82740489,184.56,184.55,30.56545749]
[1755776157667,2.82740489,184.56,184.55,26.72]
[1755776157977,2.82740489,184.56,184.55,30.56545749]
[1755776158369,2.82740489,184.56,184.55,26.72]
[1755776158562,2.82740489,184.56,184.54,0.03]
[1755776158768,2.82740489,184.56,184.54,0.75]
[1755776158968,2.82740489,184.56,184.55,0.72]
[1755776159700,2.82740489,184.56,184.55,4.56545749]
[1755776160229,2.82740489,184.56,184.54,0.03]
[1755776160230,2.82740489,184.56,184.54,3.87545749]
[1755776160512,0.06,184.7,184.58,26.0]
[1755776160513,4.53545749,184.64,184.58,26.0]
[1755776160818,0.69,184.67,184.59,0.72]
[1755776160992,0.06,184.68,184.64,3.84545749]
[1755776161189,6.67081781,184.66,184.6,26.0]
[1755776161497,4.53545749,184.65,184.6,71.58545749]
[1755776161702,3.84545749,184.63,184.6,67.74]
[1755776161914,4.53545749,184.62,184.6,26.0]
[1755776162093,2.82536032,184.66,184.54,0.03]
[1755776162094,4.53545749,184.61,184.54,0.75]
[1755776162402,3.84545749,184.57,184.54,41.79]
[1755776162780,4.53545749,184.57,184.54,41.79]
[1755776162979,0.69,184.57,184.54,41.79]
[1755776163219,0.69,184.56,184.54,0.03]
[1755776163584,4.53545749,184.56,184.54,0.03]
[1755776164110,0.69,184.55,184.54,0.03]
[1755776164320,4.53545749,184.55,184.54,0.03]
[1755776164607,3.84545749,184.59,184.54,0.75]
[1755776164789,4.53545749,184.58,184.54,0.75]
[1755776165504,4.53545749,184.57,184.54,0.03]
[1755776165892,3.84545749,184.57,184.54,0.03]
[1755776166104,3.84545749,184.55,184.54,0.03]
[1755776166601,4.53545749,184.55,184.54,0.03]
[1755776168505,13.59559401,184.54,184.45,41.82]
[1755776168696,13.59559401,184.54,184.45,45.66545749]
[1755776168894,3.84545749,184.5,184.45,46.38545749]
[1755776169101,3.84545749,184.5,184.45,45.66545749]
[1755776169282,3.84545749,184.48,184.42,39.06]
[1755776169486,0.69,184.47,184.43,3.84545749]